[Event "Kings Tournament ROMGAZ 2018-B"]
[Site "Bucharest"]
[Date "2018.11.21"]
[Round "5"]
[White "Paulet, Iozefina"]
[Black "Foisor, Sabina-Francesca"]
[Result "1/2-1/2"]
[ECO "C50"]
[WhiteElo "2281"]
[BlackElo "2264"]
[Annotator "RC"]
[PlyCount "124"]
[EventDate "2018.11.21"]
[EventCountry "ROU"]
[SourceTitle "playchess.com"]
[Source "ChessBase"]
[SourceQuality "1"]
[TimeControl "180+2"]

1. e4 {[%emt 0:00:00]} e5 {[%emt 0:00:00]} 2. Nf3 {[%emt 0:00:00]} Nc6 {[%emt 0:00:00]} 3. Nc3 {[%emt 0:00:00]} Nf6 {[%emt 0:00:00]} 4. Bc4 {[%emt 0:00:03]} Bc5 {[%emt 0:00:00]} 5. d3 {[%emt 0:00:00]} d6 {[%emt 0:00:04]} 6. Bg5 {[%emt 0:00:01]} Be6 {[%emt 0:00:07]} 7. Nd5 {[%emt 0:00:09]} Bxd5 {[%emt 0:00:04]} 8. Bxd5 {[%emt 0:00:01]} h6 {[%emt 0:00:08]} 9. Bh4 {[%emt 0:00:27]} Ne7 {[%emt 0:00:17]} 10. Bb3 {[%emt 0:00:07]} Ng6 {[%emt 0:00:06]} 11. O-O {[%emt 0:00:15]} O-O {[%emt 0:00:18]} 12. c3 {[%emt 0:00:11]} Nxh4 {[%emt 0:00:15]} 13. Nxh4 {[%emt 0:00:01]} Kh7 {[%emt 0:00:08]} 14. Nf5 {[%emt 0:00:08]} g6 {[%emt 0:00:05]} 15. Ne3 {[%emt 0:00:01]} Nh5 {[%emt 0:00:08]} 16. d4 {[%emt 0:00:03]} Bb6 {[%emt 0:00:06]} 17. g3 {[%emt 0:00:23]} c6 {[%emt 0:00:13]} 18. Nc4 {[%emt 0:00:13]} Qe7 {[%emt 0:00:13]} 19. dxe5 {[%emt 0:00:08]} dxe5 {[%emt 0:00:01]} 20. Nxb6 {[%emt 0:00:01]} axb6 {[%emt 0:00:00]} 21. Qe2 {[%emt 0:00:03]} Ng7 {[%emt 0:00:08]} 22. Rfd1 {[%emt 0:00:03]} Rfd8 {[%emt 0:00:01]} 23. Rxd8 {[%emt 0:00:07]} Rxd8 {[%emt 0:00:01]} 24. Rd1 {[%emt 0:00:01]} Rxd1+ {[%emt 0:00:15]} 25. Qxd1 {[%emt 0:00:01]} Ne6 {[%emt 0:00:00]} 26. Qe2 {[%emt 0:00:07]} b5 {[%emt 0:00:01]} 27. Qe3 {[%emt 0:00:04]} Qc5 {[%emt 0:00:18]} 28. Qxc5 {[%emt 0:01:18]} Nxc5 29. Bc2 {[%emt 0:00:00]} Kg7 {[%emt 0:00:07]} 30. Kf1 {[%emt 0:00:00]} Kf6 {[%emt 0:00:00]} 31. Ke2 Ke6 32. b4 {[%emt 0:00:00]} Nd7 {[%emt 0:00:10]} 33. Bb3+ {[%emt 0:00:00]} Ke7 {[%emt 0:00:00]} 34. Kd3 {[%emt 0:00:00]} Nb6 {[%emt 0:00:02]} 35. f4 {[%emt 0:00:00]} f6 {[%emt 0:00:06]} 36. Ke3 {[%emt 0:00:00]} Kd6 {[%emt 0:00:04]} 37. Bf7 {[%emt 0:00:00]} g5 {[%emt 0:00:00]} 38. fxg5 {[%emt 0:00:00]} fxg5 {[%emt 0:00:05]} 39. Kf3 {[%emt 0:00:00]} Na4 {[%emt 0:00:04]} 40. c4 {[%emt 0:00:00]} bxc4 {[%emt 0:00:13]} 41. Bxc4 {[%emt 0:00:00]} b5 {[%emt 0:00:01]} 42. Bb3 {[%emt 0:00:00]} Nb6 {[%emt 0:00:11]} 43. Kg4 {[%emt 0:00:00]} Nd7 {[%emt 0:00:04]} 44. Kh5 {[%emt 0:00:00]} Nf6+ {[%emt 0:00:01]} 45. Kxh6 Nxe4 {[%emt 0:00:00]} 46. Kg6 {[%emt 0:00:05]} c5 {[%emt 0:00:06]} 47. bxc5+ {[%emt 0:00:05]} Kxc5 {[%emt 0:00:02]} 48. Kf5 {[%emt 0:00:30]} Kd4 49. Bc2 {[%emt 0:00:00]} Nd2 {[%emt 0:00:01]} 50. Kxg5 {[%emt 0:00:00]} Nf3+ {[%emt 0:00:01]} 51. Kf5 {[%emt 0:00:00]} Nxh2 {[%emt 0:00:01]} 52. g4 {[%emt 0:00:00]} e4 {[%emt 0:00:06]} 53. g5 {[%emt 0:00:00]} Nf3 {[%emt 0:00:02]} 54. Bxe4 {[%emt 0:00:02]} Nxg5 {[%emt 0:00:00]} 55. Bc6 {[%emt 0:00:02]} Nf7 {[%emt 0:00:02]} 56. Ke6 {[%emt 0:00:02]} Nd8+ {[%emt 0:00:01]} 57. Kd7 {[%emt 0:00:01]} Nxc6 {[%emt 0:00:01]} 58. Kxc6 {[%emt 0:00:01]} Kc4 {[%emt 0:00:02]} 59. Kb6 {[%emt 0:00:01]} Kb4 {[%emt 0:00:01]} 60. Ka6 {[%emt 0:00:01]} Ka4 {[%emt 0:00:00]} 61. Kb6 {[%emt 0:00:01]} b4 {[%emt 0:00:01]} 62. Kc5 {[%emt 0:00:01]} Ka3 {[%emt 0:00:01]} 1/2-1/2

[Event "Kings Tournament ROMGAZ 2018-B"]
[Site "Bucharest"]
[Date "2018.11.21"]
[Round "6"]
[White "L'Ami, Alina"]
[Black "Paulet, Iozefina"]
[Result "0-1"]
[ECO "A67"]
[WhiteElo "2285"]
[BlackElo "2281"]
[Annotator "ChessBase"]
[PlyCount "35"]
[EventDate "2018.11.21"]
[EventCountry "ROU"]
[SourceTitle "playchess.com"]
[Source "ChessBase"]
[SourceQuality "1"]
[TimeControl "180+2"]

1. d4 {[%emt 0:00:00]} Nf6 {[%emt 0:00:00]} 2. c4 {[%emt 0:00:00]} c5 {[%emt 0:00:00]} 3. d5 {[%emt 0:00:02]} e6 {[%emt 0:00:00]} 4. Nc3 {[%emt 0:00:01]} exd5 {[%emt 0:00:00]} 5. cxd5 {[%emt 0:00:01]} d6 {[%emt 0:00:01]} 6. e4 {[%emt 0:00:01]} g6 {[%emt 0:00:01]} 7. f4 {[%emt 0:00:02]} Bg7 {[%emt 0:00:00]} 8. Bb5+ {[%emt 0:00:01]} Nfd7 {[%emt 0:00:01]} 9. Nf3 {[%emt 0:00:01]} O-O {[%emt 0:00:01]} 10. O-O {[%emt 0:00:02]} a6 {[%emt 0:00:01] Bd3b5Kh1 [%clk 0:03:11] Nb6 [%clk 0:03:18]} 11. f5 {[%emt 0:00:02] N8d7 [%clk 0:03:18] Bg5 [%clk 0:03:08]} Bf6 {[%emt 0:00:00]} 12. Qd2 {[%emt 0:00:08] b4 [%clk 0:03:13] Ne2 [%clk 0:02:56]} a5 {[%emt 0:00:52]} 13. h4 {[%emt 0:00:37]} c4 {[%emt 0:00:05] Bc2 [%clk 0:02:28]} 14. Ba6 {[%emt 0:00:05] Rf2 [%clk 0:01:59] Rc8 [%clk 0:02:21] Ned4 [%clk 0:01:53] c3 [%clk 0:02:14] bxc3 [%clk 0:01:53] bxc3 [%clk 0:02:15] Qf4 [%clk 0:01:47]} Ne5 {[%emt 0:00:18]} 15. h5 {[%emt 0:01:02] Bd3 [%clk 0:01:29] fxg6 [%clk 0:01:12] fxg6 [%clk 0:01:13] Ne6 [%clk 0:01:11]} Bg5 {[%emt 0:00:56] Qxf8+ [%clk 0:01:10] Qxf8 [%clk 0:01:13] Nxf8 [%clk 0:01:10] Rxf8 [%clk 0:01:14]} 16. hxg6 {[%emt 0:00:26]} hxg6 {[%emt 0:00:14] Raf1 [%clk 0:00:55] Bxf1 [%clk 0:01:01] Rxf1 [%clk 0:00:56] Nxf3 [%clk 0:00:58] gxf3 [%clk 0:00:57] Nc4 [%clk 0:01:00] Rg1 [%clk 0:00:55] Bf4 [%clk 0:00:55] Rxg6+ [%clk 0:00:56] Kf7 [%clk 0:00:56] Re6 [%clk 0:00:51] Ne3 [%clk 0:00:54] Bd3 [%clk 0:00:45] c2 [%clk 0:00:52] Bxc2 [%clk 0:00:46] Nxc2 [%clk 0:00:53] Kg2 [%clk 0:00:45] Rg8+ [%clk 0:00:46]} 17. Kf2 {[%emt 0:00:18]} Be3+ {[%emt 0:00:20]} 18. Ke2 {[%emt 0:00:01] Nd4+ [%clk 0:00:45] Kxe3 [%clk 0:00:47] Nxe6 [%clk 0:00:46] dxe6+ [%clk 0:00:47] Kxe6 [%clk 0:00:48] Kd4 [%clk 0:00:00] Ke5+*} 0-1

[Event "Kings Tournament ROMGAZ 2018-B"]
[Site "Bucharest"]
[Date "2018.11.21"]
[Round "8"]
[White "Bulmaga, Irina"]
[Black "Foisor, Sabina-Francesca"]
[Result "1-0"]
[ECO "B12"]
[WhiteElo "2386"]
[BlackElo "2264"]
[Annotator "ChessBase"]
[PlyCount "99"]
[EventDate "2018.11.21"]
[EventCountry "ROU"]
[SourceTitle "playchess.com"]
[Source "ChessBase"]
[SourceQuality "1"]
[TimeControl "180+2"]

1. e4 {[%emt 0:00:00]} c6 {[%emt 0:00:00]} 2. d4 d5 3. e5 {[%emt 0:00:01]} Bf5 {[%emt 0:00:00]} 4. Nf3 {[%emt 0:00:01]} e6 {[%emt 0:00:00]} 5. Be2 {[%emt 0:00:01]} h6 {[%emt 0:00:01]} 6. O-O {[%emt 0:00:01]} Nd7 {[%emt 0:00:01]} 7. Nbd2 {[%emt 0:00:02]} Qc7 {[%emt 0:00:01]} 8. c3 {[%emt 0:00:01]} Ne7 {[%emt 0:00:01]} 9. Ne1 {[%emt 0:00:03]} g5 {[%emt 0:00:06]} 10. Nb3 {[%emt 0:00:05]} Bg7 {[%emt 0:00:03]} 11. f4 {[%emt 0:00:02]} c5 {[%emt 0:00:10]} 12. Be3 {[%emt 0:00:07]} c4 {[%emt 0:00:12]} 13. Nd2 {[%emt 0:00:03]} Rc8 {[%emt 0:00:05]} 14. fxg5 {[%emt 0:00:26]} hxg5 {[%emt 0:00:21]} 15. h3 {[%emt 0:00:18]} f6 {[%emt 0:00:12]} 16. exf6 {[%emt 0:00:14]} Bxf6 {[%emt 0:00:01]} 17. Bg4 {[%emt 0:00:11]} Qg3 {[%emt 0:00:45]} 18. Qf3 {[%emt 0:00:22]} Qxf3 {[%emt 0:00:08]} 19. Nexf3 {[%emt 0:00:06]} Bxg4 {[%emt 0:00:15]} 20. hxg4 {[%emt 0:00:01]} Rg8 {[%emt 0:00:00]} 21. Rae1 {[%emt 0:00:01]} Rc6 {[%emt 0:00:06]} 22. Rf2 {[%emt 0:00:10]} Ra6 {[%emt 0:00:01]} 23. a3 {[%emt 0:00:01]} Rb6 {[%emt 0:00:00]} 24. Nf1 {[%emt 0:00:02]} Kd8 {[%emt 0:00:12]} 25. Ng3 {[%emt 0:00:02]} Nc8 {[%emt 0:00:20]} 26. Nh5 {[%emt 0:01:31]} Be7 27. Bc1 {[%emt 0:00:00]} Nf6 {[%emt 0:00:10]} 28. Nxf6 Bxf6 {[%emt 0:00:00]} 29. Ne5 {[%emt 0:00:00]} Bxe5 {[%emt 0:00:15]} 30. Rxe5 {[%emt 0:00:00]} Ne7 {[%emt 0:00:01]} 31. Bxg5 {[%emt 0:00:00]} Ke8 {[%emt 0:00:05]} 32. Rfe2 {[%emt 0:00:00]} Rg6 {[%emt 0:00:02]} 33. Kf2 {[%emt 0:00:00]} Kf7 {[%emt 0:00:03]} 34. Bxe7 Kxe7 {[%emt 0:00:01]} 35. g5 {[%emt 0:00:00]} Rd6 {[%emt 0:00:08]} 36. Kf3 {[%emt 0:00:00]} Rd8 {[%emt 0:00:00]} 37. Kg4 {[%emt 0:00:00]} Kd6 {[%emt 0:00:04]} 38. Rf2 {[%emt 0:00:00]} Rdg8 {[%emt 0:00:04]} 39. Kh5 {[%emt 0:00:00]} R6g7 {[%emt 0:00:02]} 40. Rf6 {[%emt 0:00:00]} Rh7+ {[%emt 0:00:08]} 41. Rh6 {[%emt 0:00:00]} Re7 {[%emt 0:00:03]} 42. g6 {[%emt 0:00:00]} Reg7 {[%emt 0:00:01]} 43. g4 {[%emt 0:00:00]} Ke7 {[%emt 0:00:03]} 44. Rh7 {[%emt 0:00:03]} Kf6 {[%emt 0:00:05]} 45. g5+ {[%emt 0:00:02]} Ke7 {[%emt 0:00:01]} 46. Kh6 {[%emt 0:00:35]} Kf8 47. Rxg7 {[%emt 0:00:00]} Rxg7 {[%emt 0:00:00]} 48. Rxe6 {[%emt 0:00:00]} Rg8 {[%emt 0:00:02]} 49. Rf6+ {[%c lk 0:00:26]} Ke7 {[%emt 0:00:05]} 50. Kh7 {[%emt 0:00:00]} 1-0

[Event "Kings Tournament ROMGAZ 2018-B"]
[Site "Bucharest"]
[Date "2018.11.21"]
[Round "8"]
[White "Paulet, Iozefina"]
[Black "L'Ami, Alina"]
[Result "0-1"]
[ECO "B23"]
[WhiteElo "2281"]
[BlackElo "2285"]
[Annotator "ChessBase"]
[PlyCount "99"]
[EventDate "2018.11.21"]
[EventCountry "ROU"]
[SourceTitle "playchess.com"]
[Source "ChessBase"]
[SourceQuality "1"]
[TimeControl "180+2"]

1. e4 {[%emt 0:00:00]} c5 {[%emt 0:00:00]} 2. Nc3 {[%emt 0:00:00]} d6 {[%emt 0:00:01]} 3. f4 {[%emt 0:00:01]} Nc6 {[%emt 0:00:01]} 4. Nf3 {[%emt 0:00:01]} g6 {[%emt 0:00:01]} 5. Bc4 {[%emt 0:00:01]} Bg7 {[%emt 0:00:01]} 6. O-O {[%emt 0:00:02]} e6 {[%emt 0:00:01]} 7. d3 {[%emt 0:00:00]} Nge7 {[%emt 0:00:03]} 8. Qe1 {[%emt 0:00:01]} O-O {[%emt 0:00:02]} 9. a4 {[%emt 0:00:01]} d5 {[%emt 0:00:18]} 10. Bb3 {[%emt 0:00:03]} Nd4 {[%emt 0:00:10]} 11. Nxd4 {[%emt 0:00:30]} cxd4 {[%emt 0:00:03]} 12. Nd1 {[%emt 0:00:07]} dxe4 {[%emt 0:00:02]} 13. dxe4 {[%emt 0:00:01]} d3 {[%emt 0:00:06]} 14. Be3 {[%emt 0:00:26]} b6 {[%emt 0:00:18]} 15. Nc3 {[%emt 0:00:14]} dxc2 {[%emt 0:00:24]} 16. Bxc2 {[%emt 0:00:01]} Ba6 {[%emt 0:00:04]} 17. Rf2 {[%emt 0:00:01]} Rc8 {[%emt 0:00:04]} 18. f5 {[%emt 0:00:13]} exf5 {[%emt 0:00:05]} 19. exf5 {[%emt 0:00:01]} Nxf5 {[%emt 0:00:09]} 20. Bxf5 {[%emt 0:00:01]} gxf5 {[%emt 0:00:01]} 21. Rxf5 {[%emt 0:00:06]} Bd3 {[%emt 0:00:09]} 22. Rd5 {[%emt 0:00:18]} Bxc3 {[%emt 0:00:03]} 23. Qg3+ {[%emt 0:00:03]} Bg7 {[%emt 0:00:01]} 24. Rxd8 {[%emt 0:00:01]} Rfxd8 {[%emt 0:00:02]} 25. Bh6 {[%emt 0:00:02]} Bg6 {[%emt 0:00:02]} 26. Bxg7 {[%emt 0:00:02]} Kxg7 {[%emt 0:00:01]} 27. h4 {[%emt 0:00:11]} Rc5 {[%emt 0:00:05]} 28. Re1 {[%emt 0:00:11]} Rcd5 {[%emt 0:00:12]} 29. Re5 {[%emt 0:00:03]} Rd1+ {[%emt 0:01:29]} 30. Kh2 {[%emt 0:00:03]} R8d3 {[%emt 0:00:00]} 31. Re3 {[%emt 0:00:39]} Rd5 {[%emt 0:00:00]} 32. Rf3 {[%emt 0:00:07]} R1d4 {[%emt 0:00:00]} 33. Rf4 {[%emt 0:00:07]} Rd3 {[%emt 0:00:00]} 34. Qe1 {[%emt 0:00:08]} h5 {[%emt 0:00:00]} 35. Qe7 {[%emt 0:00:03]} Rd7 {[%emt 0:00:00]} 36. Qf6+ {[%emt 0:00:02]} Kh7 {[%emt 0:00:00]} 37. b4 {[%emt 0:00:10]} R3d6 {[%emt 0:00:00]} 38. Qe5 {[%emt 0:00:03]} Re6 {[%emt 0:00:00]} 39. Qg5 {[%emt 0:00:04]} Re2 {[%emt 0:00:00]} 40. Rxf7+ {[%emt 0:00:07]} Rxf7 {[%emt 0:00:00]} 41. a5 {[%emt 0:00:02]} Rff2 {[%emt 0:00:00]} 42. axb6 {[%emt 0:00:03]} Rxg2+ {[%emt 0:00:00]} 43. Qxg2 {[%emt 0:00:01]} Rxg2+ {[%emt 0:00:00]} 44. Kxg2 {[%emt 0:00:00]} axb6 {[%emt 0:00:00]} 45. Kf3 {[%emt 0:00:01]} Kg7 {[%emt 0:00:00]} 46. Kf4 {[%emt 0:00:02]} Kf6 {[%emt 0:00:00]} 47. b5 {[%emt 0:00:00]} Be8 {[%emt 0:00:00]} 48. Ke4 {[%emt 0:00:01]} Bxb5 {[%emt 0:00:00]} 49. Kd5 {[%emt 0:00:00]} Bf1 {[%emt 0:00:01]} 50. Kd4 {[%emt 0:00:15] Ke5+*} 0-1